bitfinex/quotes_BTCUSD_20250829
["timestamp","ask_amount","ask_price","bid_price","bid_amount"]
[1756449615042,1.68237455,111210.0,111200.0,0.17999725]
[1756449615263,1.68237455,111210.0,111200.0,0.17680725]
[1756449615468,1.68237455,111210.0,111200.0,0.35457336]
[1756449616160,1.68237455,111210.0,111200.0,0.35666336]
[1756449617150,1.68237455,111210.0,111200.0,0.35985336]
[1756449617744,1.68041455,111210.0,111200.0,0.35985336]
[1756449618153,0.00034349,111210.0,111200.0,0.35985336]
[1756449618328,1.68041455,111210.0,111200.0,0.35985336]
[1756449618590,1.68255455,111210.0,111200.0,0.35985336]
[1756449619109,0.00248349,111210.0,111200.0,0.35666336]
[1756449619315,1.68255455,111210.0,111200.0,0.35666336]
[1756449620354,1.68255455,111210.0,111200.0,0.35983336]
[1756449622154,1.68255455,111210.0,111200.0,0.35666336]
[1756449624625,0.00248349,111210.0,111200.0,0.35666336]
[1756449624833,1.68255455,111210.0,111200.0,0.35666336]
[1756449628823,0.84037902,111210.0,111200.0,0.35983336]
[1756449633565,0.00034349,111210.0,111200.0,0.35983336]
[1756449633724,0.84037902,111210.0,111200.0,0.35983336]
[1756449635534,0.84037902,111210.0,111200.0,0.44812968]
[1756449637866,0.00034349,111210.0,111200.0,0.44812968]
[1756449638066,0.84037902,111210.0,111200.0,0.44812968]
[1756449638266,1.23622475,111240.0,111230.0,0.1798076]
[1756449638472,2.0111905,111240.0,111230.0,0.3436476]
[1756449639774,2.0111905,111240.0,111230.0,0.3456476]
[1756449640183,2.0027766,111240.0,111230.0,0.3456476]
[1756449640920,1.68221106,111240.0,111230.0,0.3456476]
[1756449641134,1.68321106,111240.0,111230.0,0.3456476]
[1756449641343,1.71024206,111240.0,111230.0,0.3456476]
[1756449645639,1.71024206,111240.0,111230.0,0.3476376]
[1756449645850,0.87020653,111240.0,111230.0,0.3476376]
[1756449646684,0.87020653,111240.0,111230.0,0.3436476]
[1756449646888,0.86920653,111240.0,111230.0,0.3436476]
[1756449647153,0.87020653,111240.0,111230.0,0.3466476]
[1756449648799,0.87020653,111240.0,111230.0,0.3487476]
[1756449649223,0.86806653,111240.0,111230.0,0.3519676]
[1756449649434,0.87003653,111240.0,111230.0,0.3519676]
[1756449652803,0.87003653,111240.0,111230.0,0.3487476]
[1756449653123,0.86806653,111240.0,111230.0,0.3519676]
[1756449654830,0.028031,111240.0,111230.0,0.3519676]
[1756449655038,0.87003653,111240.0,111230.0,0.3519676]
[1756449656571,0.86806653,111240.0,111230.0,0.3519676]
[1756449656774,0.87003653,111240.0,111230.0,0.3519676]
[1756449659460,0.97431558,111240.0,111230.0,0.3519676]
[1756449661593,0.030001,111240.0,111230.0,0.3519676]
[1756449661725,1.91863016,111240.0,111230.0,0.3519676]
[1756449662126,0.030001,111240.0,111230.0,0.3519676]
[1756449662366,1.91863016,111240.0,111230.0,0.3519676]
[1756449663044,0.028031,111240.0,111230.0,0.3519676]
[1756449663926,0.97234558,111240.0,111230.0,0.3519676]
[1756449664479,0.97234558,111240.0,111230.0,0.3539676]
[1756449665303,0.97134558,111240.0,111230.0,0.3509676]
[1756449665875,0.97134558,111240.0,111230.0,0.3539676]
[1756449667507,0.027031,111240.0,111230.0,0.3539676]
[1756449668016,0.94431458,111240.0,111230.0,0.3539676]
[1756449668831,0.027029,111250.0,111240.0,0.17979144]
[1756449669025,0.97134358,111250.0,111240.0,0.17979144]
[1756449669227,0.97331358,111250.0,111240.0,0.17979144]
[1756449670124,0.97339958,111250.0,111240.0,0.18279144]
[1756449670663,0.029085,111250.0,111240.0,0.18489144]
[1756449670873,0.97339958,111250.0,111240.0,0.18279144]
[1756449671086,0.029085,111250.0,111240.0,0.18279144]
[1756449671326,0.97339958,111250.0,111240.0,0.18279144]
[1756449671709,0.029085,111250.0,111240.0,0.18279144]
[1756449672112,0.97339958,111250.0,111240.0,0.18279144]
[1756449672530,0.029085,111250.0,111240.0,0.18811144]
[1756449672732,0.97142958,111250.0,111240.0,0.18811144]
[1756449672895,0.027115,111250.0,111240.0,0.18811144]
[1756449673091,0.97142958,111250.0,111240.0,0.18811144]
[1756449674241,0.027115,111250.0,111240.0,0.18811144]
[1756449674736,0.97142958,111250.0,111240.0,0.18811144]
[1756449675384,8.6e-05,111250.0,111240.0,0.18811144]
[1756449675537,0.94440058,111250.0,111240.0,0.18811144]
[1756449678525,8.6e-05,111250.0,111240.0,0.21513544]
[1756449678727,8.6e-05,111250.0,111240.0,0.30343176]
[1756449678883,8.6e-05,111250.0,111240.0,0.21513544]
[1756449679681,8.6e-05,111250.0,111240.0,0.30343176]
[1756449679856,8.6e-05,111250.0,111240.0,0.21513544]
[1756449680057,8.6e-05,111250.0,111240.0,0.30343176]
[1756449680314,8.6e-05,111250.0,111240.0,0.21513544]
[1756449680716,8.6e-05,111250.0,111240.0,2.19206092]
[1756449681034,8.6e-05,111250.0,111240.0,2.1537646]
[1756449681654,8.6e-05,111250.0,111240.0,0.31513544]
[1756449681855,0.00319,111300.0,111280.0,0.17972681]
[1756449682001,0.00319,111300.0,111290.0,0.34451066]
[1756449682002,0.00327599,111300.0,111290.0,0.34451066]
[1756449682177,0.1797805,111300.0,111290.0,0.34451066]
[1756449682379,0.1850405,111300.0,111290.0,0.34451066]
[1756449682633,0.94647057,111300.0,111290.0,0.34451066]
[1756449682872,0.02916999,111300.0,111290.0,0.34451066]
[1756449683254,0.96848457,111300.0,111290.0,0.34451066]
[1756449683468,0.96848457,111300.0,111290.0,0.34979066]
[1756449683469,0.02445999,111300.0,111290.0,0.34979066]
[1756449683665,0.98116152,111300.0,111290.0,0.34451066]
[1756449684110,1.16085603,111300.0,111290.0,0.34451066]
[1756449684440,0.21755008,111300.0,111290.0,0.34451066]
[1756449684838,0.03785557,111300.0,111290.0,0.34979066]
[1756449685083,0.21726008,111300.0,111290.0,0.34979066]
[1756449685290,0.03756557,111300.0,111290.0,0.42042148]
[1756449685435,0.00298,111300.0,111290.0,0.42042148]
[1756449685844,0.9603462,111300.0,111290.0,0.17971066]
[1756449686092,0.9618362,111300.0,111290.0,0.34659066]
[1756449686294,0.01704025,111300.0,111290.0,0.34970066]
[1756449686500,0.9603462,111300.0,111290.0,0.34659066]
[1756449686697,0.01704025,111300.0,111290.0,0.34659066]
[1756449686902,0.9603462,111300.0,111290.0,0.35187066]
[1756449687111,0.01704025,111300.0,111290.0,0.34659066]
[1756449687311,0.01704025,111300.0,111290.0,0.34699066]
[1756449687527,0.01704025,111300.0,111290.0,0.35227066]
[1756449687706,0.01506025,111300.0,111290.0,0.35227066]
[1756449687913,0.01506025,111300.0,111290.0,0.42290148]
[1756449688296,0.9583662,111300.0,111290.0,0.35227066]
[1756449688501,0.9583662,111300.0,111290.0,0.44056698]
[1756449688702,0.9583662,111300.0,111290.0,0.35227066]
[1756449688929,0.01506025,111300.0,111290.0,0.44056698]
[1756449689094,0.9583662,111300.0,111290.0,0.35227066]
[1756449689323,0.01506025,111300.0,111290.0,0.35227066]
[1756449690714,0.01506025,111300.0,111290.0,0.44056698]
[1756449690977,0.01506025,111300.0,111290.0,0.35227066]
[1756449691175,0.01506025,111300.0,111290.0,0.37927966]
[1756449691651,0.01506025,111300.0,111290.0,0.35227066]
[1756449691875,1.14004071,111300.0,111290.0,0.16728]
[1756449691989,0.18267451,111300.0,111290.0,0.16728]
[1756449692191,0.18069451,111300.0,111290.0,0.17256]
[1756449692395,0.18069451,111300.0,111290.0,0.35227066]
[1756449692817,0.001,111300.0,111290.0,0.35227066]
[1756449693378,1.12400046,111300.0,111290.0,0.17256]
[1756449693560,0.18069451,111300.0,111290.0,0.17256]
[1756449693719,1.12400046,111300.0,111290.0,0.16728]
[1756449693952,1.12400046,111300.0,111290.0,0.17256]
[1756449694539,1.12400046,111300.0,111290.0,0.35227066]
[1756449694709,0.18069451,111300.0,111290.0,0.17256]
[1756449694919,1.12400046,111300.0,111290.0,0.17256]
[1756449695322,0.18069451,111300.0,111290.0,0.17256]
[1756449695793,1.12400046,111300.0,111290.0,0.35227066]
[1756449695979,0.94430595,111300.0,111290.0,0.35227066]
[1756449696208,0.001,111300.0,111290.0,0.35227066]
[1756449696404,0.001,111300.0,111290.0,0.39231281]
[1756449698062,0.001,111300.0,111290.0,0.38903358]
[1756449698691,0.0004,111310.0,111300.0,0.17969451]
[1756449698900,0.0004,111310.0,111300.0,0.18280451]
[1756449699116,0.0004,111310.0,111300.0,0.18497451]
[1756449699724,0.0004,111310.0,111300.0,0.18797451]
[1756449700133,0.0004,111310.0,111300.0,0.19197451]
[1756449701119,0.0004,111310.0,111300.0,0.18897451]
[1756449701524,0.0004,111310.0,111300.0,0.19097451]
[1756449702418,0.0004,111310.0,111300.0,0.18697451]
[1756449702843,0.0004,111310.0,111300.0,0.18897451]
[1756449704601,0.0004,111310.0,111300.0,0.27727083]
[1756449704803,0.0004,111310.0,111300.0,0.21597851]
[1756449705006,0.94577595,111310.0,111300.0,0.21069851]
[1756449705289,0.94577595,111310.0,111300.0,0.37941851]
[1756449705508,0.94577595,111310.0,111300.0,0.38469851]
[1756449705634,0.94370595,111310.0,111300.0,0.35769451]
[1756449705990,0.94576595,111310.0,111300.0,0.18680451]
[1756449706331,0.94576595,111310.0,111300.0,0.35233451]
[1756449706536,0.94370595,111310.0,111300.0,0.35450451]
[1756449706802,0.94370595,111310.0,111300.0,0.35761451]
[1756449707208,0.94575595,111310.0,111300.0,0.35761451]
[1756449707437,0.95209831,111310.0,111300.0,0.35761451]
[1756449707641,0.94370595,111310.0,111300.0,0.35761451]
[1756449708010,0.94370595,111310.0,111300.0,0.34746747]
[1756449708418,0.9521021,111310.0,111300.0,0.34746747]
[1756449708611,0.9521021,111310.0,111300.0,0.17882747]
[1756449708816,0.9521021,111310.0,111300.0,0.34710747]
[1756449709259,0.00879615,111310.0,111300.0,0.34703554]
[1756449709463,0.9540821,111310.0,111300.0,0.34671554]
[1756449710245,0.9540821,111310.0,111300.0,0.17855554]
[1756449710454,0.9521021,111310.0,111300.0,0.17855554]
[1756449710651,0.9521021,111310.0,111300.0,0.34651554]
[1756449711220,0.9540821,111310.0,111300.0,0.34143554]
[1756449711478,0.00879615,111310.0,111300.0,0.34651554]
[1756449711659,0.9521021,111310.0,111300.0,0.34651554]
[1756449711860,0.9521021,111310.0,111300.0,0.34635554]
[1756449712272,0.9521021,111310.0,111300.0,0.43465186]
[1756449712474,0.95211579,111310.0,111300.0,0.34635554]
[1756449712633,0.95211579,111310.0,111300.0,0.43465186]
[1756449712833,0.00880984,111310.0,111300.0,0.34635554]
[1756449713035,0.95211579,111310.0,111300.0,0.34635554]
[1756449713474,0.95409579,111310.0,111300.0,0.34127554]
[1756449713721,0.19046821,111310.0,111300.0,0.34127554]
[1756449713920,0.00880984,111310.0,111300.0,0.43465186]
[1756449714218,0.95211579,111310.0,111300.0,0.34635554]
[1756449714565,0.95211579,111310.0,111300.0,0.34430554]
[1756449714761,0.01078984,111310.0,111300.0,0.34127554]
[1756449714987,0.95409579,111310.0,111300.0,0.17347554]
[1756449715187,0.95409579,111310.0,111300.0,0.34631554]
[1756449715410,1.13377416,111310.0,111300.0,0.34123554]
[1756449715959,1.12536432,111310.0,111300.0,0.34631554]
[1756449716141,1.13377545,111310.0,111300.0,0.43461186]
[1756449716294,1.13377545,111310.0,111300.0,0.34123554]
[1756449716518,1.13179545,111310.0,111300.0,0.34631554]
[1756449716722,1.13377545,111310.0,111300.0,0.34631554]
[1756449716916,1.13179545,111310.0,111300.0,0.34631554]
[1756449717123,1.13179545,111310.0,111300.0,0.43461186]
[1756449717324,1.13377545,111310.0,111300.0,0.43461186]
[1756449717526,1.13377545,111310.0,111300.0,0.34631554]
[1756449717692,0.1884895,111310.0,111300.0,0.43461186]
[1756449717897,1.13377545,111310.0,111300.0,0.34631554]
[1756449718093,1.13377545,111310.0,111300.0,0.17347554]
[1756449718351,0.1904695,111310.0,111300.0,0.34115554]
[1756449718654,1.13377545,111310.0,111300.0,0.34115554]
[1756449718857,1.13179545,111310.0,111300.0,0.34320554]
[1756449719084,1.13179545,111310.0,111300.0,0.34623554]
[1756449719282,1.13179545,111310.0,111300.0,0.17855554]
[1756449719283,1.13377545,111310.0,111300.0,0.17855554]
[1756449719483,1.13377545,111310.0,111300.0,0.34438554]
[1756449719691,1.13179545,111310.0,111300.0,0.34643554]
[1756449719894,1.13179545,111310.0,111300.0,0.43473186]
[1756449720065,1.13179545,111310.0,111300.0,0.34643554]
[1756449720272,1.13377545,111310.0,111300.0,0.34643554]
[1756449720470,1.13377545,111310.0,111300.0,0.17855554]
[1756449720671,1.13377545,111310.0,111300.0,0.34611554]
[1756449720990,0.1904695,111310.0,111300.0,0.34611554]
[1756449721215,1.13377545,111310.0,111300.0,0.34611554]
[1756449721420,1.13377545,111310.0,111300.0,0.34087554]
[1756449722462,1.13377545,111310.0,111300.0,0.17650554]
[1756449722595,0.95409708,111310.0,111300.0,0.34378554]
[1756449722823,0.01079113,111310.0,111300.0,0.34583554]
[1756449723022,0.95409708,111310.0,111300.0,0.17855554]
[1756449723456,0.95409708,111310.0,111300.0,0.34571554]
[1756449723746,1.13377545,111310.0,111300.0,0.34571554]
[1756449723952,0.00881113,111310.0,111300.0,0.34571554]
[1756449724149,0.95211708,111310.0,111300.0,0.34571554]
[1756449724315,0.95409708,111310.0,111300.0,0.34571554]
[1756449724907,0.01079113,111310.0,111300.0,0.34571554]
[1756449725142,0.0004,111310.0,111300.0,0.43401186]
[1756449725332,0.00881626,111310.0,111300.0,0.26685186]
[1756449725531,0.18809724,111310.0,111300.0,0.34579554]
[1756449725812,1.13140319,111310.0,111300.0,0.34579554]
[1756449726067,0.95172482,111310.0,111300.0,0.17855554]
[1756449726384,0.94330595,111310.0,111300.0,0.34567554]
[1756449726519,1.12296964,111320.0,111300.0,0.34567554]
[1756449726723,1.12296964,111320.0,111310.0,0.18270837]
[1756449726724,0.17971148,111320.0,111310.0,0.18270837]
[1756449727083,1.12499597,111320.0,111310.0,0.18475837]
[1756449727215,1.12301597,111320.0,111310.0,0.18475837]
[1756449727414,1.12301597,111320.0,111310.0,0.27305469]
[1756449727670,1.12301597,111320.0,111310.0,0.18475837]
[1756449728033,0.17971002,111320.0,111310.0,0.18575837]
[1756449728243,1.12648597,111320.0,111310.0,0.18067837]
[1756449728445,0.18169002,111320.0,111310.0,0.27102469]
[1756449728667,0.18169002,111320.0,111310.0,0.18067837]
[1756449728865,1.12499597,111320.0,111310.0,0.18067837]
[1756449729056,1.12499597,111320.0,111310.0,0.001]
[1756449729254,0.18169002,111320.0,111310.0,0.001]
[1756449729477,1.12499597,111320.0,111310.0,0.001]
[1756449729777,1.12499597,111320.0,111310.0,0.16888]
[1756449730191,0.18169002,111320.0,111310.0,0.17396]
[1756449730361,1.12499597,111320.0,111310.0,0.17396]
[1756449731168,0.18169002,111320.0,111310.0,0.25717632]
[1756449731372,1.12499597,111320.0,111310.0,0.16888]
[1756449731780,0.18169002,111320.0,111310.0,0.17396]
[1756449731980,0.18169002,111320.0,111310.0,0.35363837]
[1756449732178,1.12499597,111320.0,111310.0,0.44193469]
[1756449732411,1.12301597,111320.0,111310.0,0.35363837]
[1756449733024,1.12499597,111320.0,111310.0,0.34855837]
[1756449733198,1.12499597,111320.0,111310.0,0.43890469]
[1756449733519,0.94335374,111320.0,111310.0,0.44193469]
[1756449733798,0.94335374,111320.0,111310.0,0.35363837]
[1756449734252,4.779e-05,111320.0,111310.0,0.35363837]
[1756449734452,0.94335374,111320.0,111310.0,0.35363837]
[1756449734665,0.94335374,111320.0,111310.0,0.43964469]
[1756449734863,4.779e-05,111320.0,111310.0,0.35339837]
[1756449735068,0.94335374,111320.0,111310.0,0.35339837]
[1756449735448,1.12499597,111320.0,111310.0,0.34827837]
[1756449735672,0.17971002,111320.0,111310.0,0.35335837]
[1756449735891,1.12301597,111320.0,111310.0,0.35335837]
[1756449736395,1.12301597,111320.0,111310.0,0.44165469]
[1756449736608,0.94335374,111320.0,111310.0,0.44165469]
[1756449737039,0.94335374,111320.0,111310.0,0.35335837]
[1756449737252,4.779e-05,111320.0,111310.0,0.35335837]
[1756449738378,0.94335374,111320.0,111310.0,0.35335837]
[1756449738571,1.12301597,111320.0,111310.0,0.35335837]
[1756449738695,1.12499597,111320.0,111310.0,0.34803837]
[1756449738894,0.17971002,111320.0,111310.0,0.17342]
[1756449739192,1.12301597,111320.0,111310.0,0.17342]
[1756449739376,0.9430375,111320.0,111310.0,0.35309837]
[1756449739575,4.779e-05,111320.0,111310.0,0.35309837]
[1756449739780,0.9430375,111320.0,111310.0,0.35309837]
[1756449740026,4.779e-05,111320.0,111310.0,0.35309837]
[1756449740569,4.779e-05,111320.0,111310.0,0.44139469]
[1756449740779,0.9430375,111320.0,111310.0,0.35309837]
[1756449742137,1.12269973,111320.0,111310.0,0.35309837]
[1756449742385,4.779e-05,111320.0,111310.0,0.51202551]
[1756449742564,4.779e-05,111320.0,111310.0,0.42372919]
[1756449743738,4.779e-05,111320.0,111310.0,0.51202551]
[1756449743942,4.779e-05,111320.0,111310.0,0.42372919]
[1756449745023,4.779e-05,111320.0,111310.0,0.51202551]
[1756449745237,4.779e-05,111320.0,111310.0,0.45073019]
[1756449745485,4.779e-05,111320.0,111310.0,0.49973019]
[1756449745706,4.779e-05,111320.0,111310.0,0.50073019]
[1756449745931,4.779e-05,111320.0,111310.0,1.4434436]
[1756449746156,4.779e-05,111320.0,111310.0,1.4414436]
[1756449746392,4.779e-05,111320.0,111310.0,1.54140913]
[1756449746617,4.779e-05,111320.0,111310.0,1.74540913]
[1756449746876,4.779e-05,111320.0,111310.0,1.80711281]
[1756449747093,4.779e-05,111320.0,111310.0,1.40611281]
[1756449747303,4.779e-05,111320.0,111310.0,1.80911281]
[1756449747518,1e-08,111320.0,111310.0,1.89740913]
[1756449747748,0.0004,111340.0,111330.0,0.22964609]
[1756449747968,0.0004,111340.0,111330.0,1.3388795]
[1756449748169,0.0004,111340.0,111330.0,1.5439395]
[1756449748387,0.0004,111340.0,111330.0,1.2939395]
[1756449748603,0.0004,111340.0,111330.0,0.35482509]
[1756449748815,0.0004,111340.0,111330.0,1.2975385]
[1756449749033,0.0004,111340.0,111330.0,1.2995385]
[1756449749287,0.0004,111340.0,111330.0,1.38783482]
[1756449749496,0.0004,111340.0,111330.0,0.39759342]
[1756449749708,0.0004,111340.0,111330.0,1.34030683]
[1756449750297,0.0004,111340.0,111330.0,0.40159342]
[1756449750548,0.0004,111340.0,111330.0,0.40155342]
[1756449750789,0.00238,111340.0,111330.0,0.23507342]
[1756449751006,0.00238,111340.0,111330.0,0.40131342]
[1756449751222,0.0004,111340.0,111330.0,0.39826342]
[1756449751431,0.00239,111340.0,111330.0,0.48960974]
[1756449751645,0.00239,111340.0,111330.0,0.23147442]
[1756449751865,0.0004,111340.0,111330.0,0.39559442]
[1756449752073,0.0004,111340.0,111330.0,0.22947442]
[1756449752285,0.00239,111340.0,111330.0,0.39563442]
[1756449752516,0.0004,111340.0,111330.0,0.39163442]
[1756449752718,0.0004,111340.0,111330.0,0.39463442]
[1756449753954,0.0004,111340.0,111330.0,0.48293074]
[1756449754162,0.0004,111340.0,111330.0,0.39463442]
[1756449754398,0.0004,111340.0,111330.0,1.38734783]
[1756449754573,0.0004,111340.0,111330.0,1.58734783]
[1756449754772,0.0004,111340.0,111330.0,1.42118783]
[1756449754975,0.0004,111340.0,111330.0,1.58714783]
[1756449755110,0.0004,111340.0,111330.0,1.17118783]
[1756449755321,0.0004,111340.0,111330.0,0.64443442]
[1756449755521,0.0004,111340.0,111330.0,1.73714783]
[1756449755750,0.0004,111340.0,111330.0,1.33714783]
[1756449755949,0.0004,111340.0,111330.0,1.73714783]
[1756449756148,0.0004,111340.0,111330.0,2.67986124]
[1756449756411,0.0004,111340.0,111330.0,0.94463442]
[1756449756689,0.0004,111350.0,111340.0,0.42962996]
[1756449756937,0.0004,111350.0,111340.0,1.61368969]
[1756449757112,0.0004,111350.0,111340.0,1.61569969]
[1756449757364,1e-08,111350.0,111340.0,1.52740337]
[1756449757569,1e-08,111350.0,111340.0,0.18468996]
[1756449757780,1e-08,111350.0,111340.0,1.12740337]
[1756449757955,1e-08,111350.0,111340.0,2.52861678]
[1756449758159,1e-08,111350.0,111340.0,1.58590337]
[1756449758377,1e-08,111350.0,111340.0,1.75258337]
[1756449758551,1e-08,111350.0,111340.0,1.90258337]
[1756449758757,1e-08,111350.0,111340.0,1.90254337]
[1756449758934,1e-08,111350.0,111340.0,0.90982996]
[1756449759134,1e-08,111350.0,111340.0,0.74318996]
[1756449759340,1e-08,111350.0,111340.0,0.91682996]
[1756449759582,1e-08,111350.0,111340.0,0.75018996]
[1756449759848,1e-08,111350.0,111340.0,0.51794996]
[1756449760068,1e-08,111350.0,111340.0,0.91794996]
[1756449760218,1e-08,111350.0,111340.0,0.85636628]
[1756449760419,1e-08,111350.0,111340.0,0.91806996]
[1756449760869,1e-08,111350.0,111340.0,0.76806996]
[1756449761064,1e-08,111350.0,111340.0,0.91806996]
[1756449761278,1e-08,111350.0,111340.0,1.86078337]
[1756449761441,1e-08,111350.0,111340.0,1.85778337]
[1756449761854,1e-08,111350.0,111340.0,1.55978337]
[1756449762083,1e-08,111350.0,111340.0,1.70978337]
[1756449762279,1e-08,111350.0,111340.0,0.76750996]
[1756449762537,1e-08,111350.0,111340.0,0.85380628]
[1756449762699,1e-08,111350.0,111340.0,1.70822337]
[1756449762901,1e-08,111350.0,111340.0,0.76850996]
[1756449763563,1e-08,111350.0,111340.0,1.56122337]
[1756449763760,1e-08,111350.0,111340.0,1.71122337]
[1756449763917,1e-08,111350.0,111340.0,0.76850996]
[1756449764396,1e-08,111350.0,111340.0,0.68848628]
[1756449764518,1e-08,111350.0,111340.0,1.71122337]
[1756449764721,1e-08,111350.0,111340.0,0.76850996]
[1756449765130,0.00198001,111350.0,111340.0,1.46122337]
[1756449765349,1e-08,111350.0,111340.0,0.76080996]
[1756449765554,1e-08,111350.0,111340.0,0.51080996]
[1756449765764,0.00198001,111350.0,111340.0,0.50574996]
[1756449765962,1e-08,111350.0,111340.0,0.36080996]
[1756449766161,1e-08,111350.0,111340.0,0.50380996]
[1756449766581,1e-08,111350.0,111340.0,1.44852337]
[1756449766798,1e-08,111350.0,111340.0,1.53881969]
[1756449766943,1e-08,111350.0,111340.0,0.50780996]
[1756449767131,1e-08,111350.0,111340.0,1.70076337]
[1756449767533,1e-08,111350.0,111340.0,0.90804996]
[1756449767839,1e-08,111350.0,111340.0,1.65076337]
[1756449768087,1e-08,111350.0,111340.0,1.70084337]
[1756449768280,1e-08,111350.0,111340.0,1.85084337]
[1756449768487,1e-08,111350.0,111340.0,0.90812996]
[1756449768694,1e-08,111350.0,111340.0,0.85812996]
[1756449768868,1e-08,111350.0,111340.0,0.99642628]
[1756449769184,1e-08,111350.0,111340.0,0.53511696]
[1756449769349,1e-08,111350.0,111340.0,0.38519696]
[1756449769554,1e-08,111350.0,111340.0,0.53519696]
[1756449769783,1e-08,111350.0,111340.0,0.93519696]
[1756449769980,1e-08,111350.0,111340.0,0.87349328]
[1756449770238,1e-08,111350.0,111340.0,1.87791037]
[1756449770480,1e-08,111350.0,111340.0,1.56620669]
[1756449770654,1e-08,111350.0,111340.0,1.87791037]
[1756449770850,1e-08,111350.0,111340.0,0.93519696]
[1756449771068,1e-08,111350.0,111340.0,1.87791037]
[1756449771272,0.93811342,111370.0,111360.0,0.3795977]
[1756449771482,0.00885998,111370.0,111360.0,0.5538477]
[1756449771691,0.95157339,111370.0,111360.0,0.5538477]
[1756449771894,0.00885998,111370.0,111360.0,0.5538477]
[1756449772339,0.00885998,111370.0,111360.0,0.64492467]
[1756449772542,0.00885998,111370.0,111360.0,0.69214402]
[1756449772746,0.00885998,111370.0,111360.0,0.6038477]
[1756449773309,0.00885998,111370.0,111360.0,0.7038477]
[1756449773508,0.00885998,111370.0,111360.0,0.5538477]
[1756449774087,0.00885998,111370.0,111360.0,0.64214402]
[1756449774292,0.00885998,111370.0,111360.0,0.5538477]
[1756449774509,0.00885998,111370.0,111360.0,0.6038477]
[1756449774772,0.00885998,111370.0,111360.0,0.7538477]
[1756449774985,0.00885998,111370.0,111360.0,0.7038477]
[1756449775183,0.00885998,111370.0,111360.0,0.3538477]
[1756449775385,0.00885998,111370.0,111360.0,0.39358147]
[1756449775562,0.00885998,111370.0,111360.0,0.64358147]
[1756449775765,0.00885998,111370.0,111360.0,0.5538477]
[1756449776185,0.00047824,111370.0,111360.0,0.5538477]
[1756449776730,0.94319165,111370.0,111360.0,0.84214402]
[1756449776849,0.00047824,111370.0,111360.0,0.79427734]
[1756449777068,0.94319165,111370.0,111360.0,0.39427734]
[1756449777276,0.00047824,111370.0,111360.0,0.79427734]
[1756449777472,0.00047824,111370.0,111360.0,0.7538477]
[1756449778098,0.00047824,111370.0,111360.0,0.84214402]
[1756449778295,0.00047824,111370.0,111360.0,0.7538477]
[1756449778596,0.00047824,111370.0,111360.0,0.8171277]
[1756449779714,0.00047824,111370.0,111360.0,0.90542402]
[1756449779913,0.00047824,111370.0,111360.0,0.85851215]
[1756449780288,0.00047824,111370.0,111360.0,0.66051215]
[1756449781084,0.00047824,111370.0,111360.0,0.71051215]
[1756449781291,0.00047824,111370.0,111360.0,0.71251215]
[1756449781689,0.00047824,111370.0,111360.0,0.46251215]
[1756449781906,0.00047824,111370.0,111360.0,1.65522556]
[1756449782092,0.00047824,111370.0,111360.0,1.89352188]
[1756449782291,0.00047824,111370.0,111360.0,0.71395215]
[1756449782531,0.00047824,111370.0,111360.0,0.69315215]
[1756449782731,0.00047824,111370.0,111360.0,0.86387215]
[1756449782934,0.00047824,111370.0,111360.0,0.86383215]
[1756449783108,0.00047824,111370.0,111360.0,0.69315215]
[1756449783536,0.00047824,111370.0,111360.0,0.71379215]
[1756449783857,0.00047824,111370.0,111360.0,0.86379215]
[1756449784059,0.00047824,111370.0,111360.0,0.61379215]
[1756449784266,0.00047824,111370.0,111360.0,0.69315215]
[1756449784421,0.00047824,111370.0,111360.0,0.61367215]
[1756449784670,0.00047824,111370.0,111360.0,0.86359215]
[1756449785477,0.00047824,111370.0,111360.0,0.84057715]
[1756449785704,0.00047824,111370.0,111360.0,0.64057715]
[1756449785870,0.00047824,111370.0,111360.0,0.86359215]
[1756449786066,0.00047824,111370.0,111360.0,0.89057615]
[1756449786271,0.00047824,111370.0,111360.0,0.74057615]
[1756449786467,0.00047824,111370.0,111360.0,0.89057615]
[1756449786671,0.00047824,111370.0,111360.0,0.64057615]
[1756449786864,0.00047824,111370.0,111360.0,1.63328956]
[1756449787058,0.00047824,111370.0,111360.0,1.04057615]
[1756449787463,0.00047824,111370.0,111360.0,0.92887247]
[1756449787691,0.00047824,111370.0,111360.0,0.84057615]
[1756449788025,0.00047824,111370.0,111360.0,0.64315215]
[1756449788226,0.00047824,111370.0,111360.0,0.86339215]
[1756449788366,0.00047824,111370.0,111360.0,0.47013615]
[1756449788566,0.00047824,111370.0,111360.0,1.04029615]
[1756449788791,0.00047824,111370.0,111360.0,0.95843247]
[1756449788990,0.00047824,111370.0,111360.0,1.04029615]
[1756449789224,0.00047824,111370.0,111360.0,0.87013615]
[1756449789431,0.00047824,111370.0,111360.0,1.04021615]
[1756449789603,0.00897585,111410.0,111390.0,0.17954933]
[1756449789772,0.20903648,111410.0,111400.0,0.17]
[1756449789975,0.2284002,111410.0,111400.0,0.17]
[1756449790262,0.17953321,111400.0,111390.0,0.17954761]
[1756449790411,0.20903648,111410.0,111390.0,0.17954761]
[1756449790614,0.17953321,111400.0,111390.0,0.17954761]
[1756449790818,1.13065131,111400.0,111390.0,0.34942761]
[1756449791260,1.13065131,111400.0,111390.0,0.17954761]
[1756449791600,1.13065131,111400.0,111390.0,0.34938761]
[1756449791803,2.07336472,111400.0,111390.0,0.26784393]
[1756449791981,2.07336472,111400.0,111390.0,0.43764393]
[1756449792202,2.07436472,111400.0,111390.0,0.34934761]
[1756449792412,1.13165131,111400.0,111390.0,0.34934761]
[1756449792610,1.13265211,111400.0,111390.0,0.34934761]
[1756449792814,0.9531189,111400.0,111390.0,0.34934761]
[1756449793161,0.01040549,111400.0,111390.0,0.43764393]
[1756449793366,0.9531189,111400.0,111390.0,0.34934761]
[1756449793606,1.13265211,111400.0,111390.0,0.34934761]
[1756449793815,0.9531189,111400.0,111390.0,0.34934761]
[1756449793962,0.9531189,111400.0,111390.0,0.17954761]
[1756449794159,0.9531189,111400.0,111390.0,0.34910761]
[1756449794402,0.9531189,111400.0,111390.0,0.43740393]
[1756449794602,0.9531189,111400.0,111390.0,0.34910761]
[1756449795024,1.13265211,111400.0,111390.0,0.34910761]
[1756449795230,0.9531189,111400.0,111390.0,0.34910761]
[1756449795632,0.01040549,111400.0,111390.0,0.34910761]
[1756449795838,0.9531189,111400.0,111390.0,0.34910761]
[1756449796090,0.9531189,111400.0,111390.0,0.43740393]
[1756449796297,0.9531189,111400.0,111390.0,0.34910761]
[1756449796501,0.9531189,111400.0,111390.0,0.43740393]
[1756449796720,0.9531189,111400.0,111390.0,0.34910761]
[1756449796973,0.9531189,111400.0,111390.0,0.17954761]
[1756449797203,0.9531189,111400.0,111390.0,0.43724393]
[1756449797379,0.9531189,111400.0,111390.0,0.34894761]
[1756449797380,0.95312077,111400.0,111390.0,0.34894761]
[1756449797959,1.13265398,111400.0,111390.0,0.17954761]
[1756449798148,0.95312077,111400.0,111390.0,0.17954761]
[1756449798353,0.95312077,111400.0,111390.0,0.26784393]
[1756449798573,0.95312077,111400.0,111390.0,0.34878761]